bitfinex/quotes_BTCUSD_20251104
["timestamp","ask_amount","ask_price","bid_price","bid_amount"]
[1762258968825,1.00707122,104290.0,104280.0,0.00169031]
[1762258969062,1.00807122,104290.0,104280.0,0.00669031]
[1762258969268,0.31354933,104290.0,104280.0,0.01169031]
[1762258971679,1.00807122,104290.0,104280.0,0.01169031]
[1762258972481,1.03750028,104290.0,104280.0,0.01169031]
[1762258973842,1.03750028,104290.0,104280.0,1e-08]
[1762258975765,1.03650028,104290.0,104280.0,1e-08]
[1762258976198,1.03850028,104290.0,104280.0,0.00900001]
[1762258976416,1.05493352,104290.0,104280.0,0.00900001]
[1762258976626,1.03850028,104290.0,104280.0,0.00900001]
[1762258977045,1.03850028,104290.0,104280.0,0.009]
[1762258977261,0.34397839,104290.0,104280.0,0.009]
[1762258977475,1.03850028,104290.0,104280.0,0.012]
[1762258978121,1.01797858,104290.0,104280.0,0.012]
[1762258979441,0.32345669,104290.0,104280.0,0.012]
[1762258979878,1.01797858,104290.0,104280.0,0.012]
[1762258981185,0.3134567,104290.0,104280.0,0.012]
[1762258981402,0.31454933,104290.0,104280.0,0.012]
[1762258982460,1.00907122,104290.0,104280.0,0.012]
[1762258984545,0.31454933,104290.0,104280.0,0.012]
[1762258984722,1.00907122,104290.0,104280.0,0.012]
[1762258985352,0.31454933,104290.0,104280.0,0.012]
[1762258986549,0.31454933,104290.0,104280.0,0.01218752]
[1762258987119,1.00907122,104290.0,104280.0,0.01218752]
[1762258988002,1.00900119,104290.0,104280.0,0.01218752]
[1762258988417,0.71227836,104290.0,104280.0,0.01218752]
[1762258989941,0.7211764,104290.0,104280.0,0.01218752]
[1762258992270,0.74167988,104290.0,104280.0,0.01218752]
[1762258992473,1.13947894,104290.0,104280.0,1e-08]
[1762258992905,1.14947894,104290.0,104280.0,1e-08]
[1762258993116,0.19182812,104260.0,104250.0,4e-05]
[1762258993314,0.75293625,104260.0,104250.0,4e-05]
[1762258993542,0.77630625,104260.0,104250.0,4e-05]
[1762258993731,0.77630625,104260.0,104250.0,0.00075979]
[1762258994145,0.38850718,104260.0,104250.0,0.00075979]
[1762258994936,0.39050718,104260.0,104250.0,0.01475979]
[1762258997322,0.80612775,104260.0,104250.0,0.01475979]
[1762258998597,0.40832869,104260.0,104250.0,0.01475979]
[1762258998824,0.80612775,104260.0,104250.0,0.01475979]
[1762259001624,0.8158737,104260.0,104250.0,0.01475979]
[1762259002060,0.37547464,104260.0,104250.0,0.01475979]
[1762259002268,0.41807464,104260.0,104250.0,0.01475979]
[1762259003191,0.8158737,104260.0,104250.0,0.01475979]
[1762259004153,0.41807464,104260.0,104250.0,0.01475979]
[1762259004350,0.8158737,104260.0,104250.0,0.01475979]
[1762259005155,0.80612775,104260.0,104250.0,0.01475979]
[1762259005357,0.40832869,104260.0,104250.0,0.01475979]
[1762259006820,0.36572869,104260.0,104250.0,0.01475979]
[1762259007042,0.40831566,104260.0,104250.0,0.01475979]
[1762259007466,0.40831542,104260.0,104250.0,0.01475979]
[1762259008078,0.40831538,104260.0,104250.0,0.01475979]
[1762259009475,0.40831593,104260.0,104250.0,0.01475979]
[1762259010323,0.39050718,104260.0,104250.0,0.01475979]
[1762259012561,0.80612256,104260.0,104250.0,0.01475979]
[1762259013192,0.80612232,104260.0,104250.0,0.01475979]
[1762259013895,0.20188332,104230.0,104220.0,0.00024]
[1762259014115,0.66998238,104230.0,104220.0,0.00072484]
[1762259014322,0.69488238,104230.0,104220.0,0.00072484]
[1762259014530,0.71307718,104230.0,104220.0,0.00072484]
[1762259015653,0.71407718,104230.0,104220.0,0.00572484]
[1762259015857,1.11226785,104230.0,104220.0,0.00572484]
[1762259016483,0.88157329,104230.0,104220.0,0.00572484]
[1762259016684,0.88357329,104230.0,104220.0,0.01072484]
[1762259016883,0.88257329,104230.0,104220.0,0.00572484]
[1762259017094,0.88257329,104230.0,104220.0,0.00872484]
[1762259017537,0.88257329,104230.0,104220.0,0.00572484]
[1762259017749,0.20190173,104220.0,104210.0,0.0002]
[1762259017967,0.92161077,104220.0,104210.0,0.00034548]
[1762259019308,0.35592399,104220.0,104210.0,0.00034548]
[1762259019515,0.3421208,104220.0,104210.0,0.00034548]
[1762259019752,0.3847208,104220.0,104210.0,0.00034548]
[1762259019967,0.3847208,104220.0,104210.0,0.0023057]
[1762259020205,0.96417468,104220.0,104210.0,0.0013057]
[1762259020655,0.3984879,104220.0,104210.0,0.0033057]
[1762259020873,0.3807208,104220.0,104210.0,0.0033057]
[1762259021498,0.3827208,104220.0,104210.0,0.0033057]
[1762259021920,0.3827208,104220.0,104210.0,0.0115057]
[1762259022550,0.3827208,104220.0,104210.0,0.0033057]
[1762259025397,0.3827208,104220.0,104210.0,0.0115057]
[1762259025779,0.3827208,104220.0,104210.0,0.0033057]
[1762259026268,0.3941408,104220.0,104210.0,0.0033057]
[1762259027684,0.3941408,104220.0,104210.0,0.19522586]
[1762259028150,0.01199999,104220.0,104210.0,0.23497586]
[1762259028360,0.20390173,104220.0,104210.0,0.23497586]
[1762259028611,0.23059173,104220.0,104210.0,0.0033057]
[1762259028826,0.25554173,104220.0,104210.0,0.0033057]
[1762259029006,0.25554173,104220.0,104210.0,0.19522586]
[1762259029213,0.21532173,104220.0,104210.0,0.21122586]
[1762259029415,0.21532173,104220.0,104210.0,0.0193057]
[1762259029620,0.23059173,104220.0,104210.0,0.0033057]
[1762259030780,0.23059173,104220.0,104210.0,0.19522586]
[1762259031172,0.20390173,104220.0,104210.0,0.23497586]
[1762259031384,0.20390173,104220.0,104210.0,0.0193057]
[1762259031590,0.21532173,104220.0,104210.0,0.0193057]
[1762259031803,0.21532173,104220.0,104210.0,0.21122586]
[1762259032633,0.20390173,104220.0,104210.0,0.23497586]
[1762259032845,0.20390173,104220.0,104210.0,0.21122586]
[1762259033048,0.21532173,104220.0,104210.0,0.0193057]
[1762259034350,0.20390173,104220.0,104210.0,0.21122586]
[1762259034563,0.20390173,104220.0,104210.0,0.23497586]
[1762259035197,0.002,104220.0,104210.0,0.23497586]
[1762259035416,0.20390173,104220.0,104210.0,0.23497586]
[1762259036202,0.21532173,104220.0,104210.0,0.0193057]
[1762259036408,0.25554173,104220.0,104210.0,0.0033057]
[1762259037070,1.14724248,104220.0,104210.0,0.0033057]
[1762259037289,1.18984248,104220.0,104210.0,0.0033057]
[1762259037707,0.79173164,104220.0,104210.0,0.0033057]
[1762259038124,1.18984248,104220.0,104210.0,0.0033057]
[1762259038332,0.79173164,104220.0,104210.0,0.0033057]
[1762259038553,0.3936208,104220.0,104210.0,0.0033057]
[1762259039173,0.95930423,104220.0,104210.0,0.0033057]
[1762259039403,0.3936208,104220.0,104210.0,0.0033057]
[1762259039729,0.95930423,104220.0,104210.0,0.0033057]
[1762259042174,0.3936208,104220.0,104210.0,0.0033057]
[1762259042373,0.41140954,104220.0,104210.0,0.0033057]
[1762259043292,0.97709297,104220.0,104210.0,0.0033057]
[1762259044461,0.98599366,104220.0,104210.0,0.0033057]
[1762259045812,1.02357902,104220.0,104210.0,1e-08]
[1762259046869,0.19192016,104210.0,104200.0,4e-05]
[1762259047102,0.2613489,104210.0,104200.0,4e-05]
[1762259047547,0.27134889,104210.0,104200.0,0.00028013]
[1762259047768,0.83703232,104210.0,104200.0,0.00028013]
[1762259047989,0.84592272,104210.0,104200.0,1e-08]
[1762259048201,0.86840502,104210.0,104200.0,1e-08]
[1762259048408,0.89722691,104210.0,104200.0,1e-08]
[1762259048868,0.33154348,104210.0,104200.0,1e-08]
[1762259049052,0.40401013,104210.0,104200.0,1e-08]
[1762259049281,0.33154348,104210.0,104200.0,1e-08]
[1762259049945,0.75764043,104190.0,104180.0,0.0002]
[1762259050152,0.75764043,104190.0,104180.0,0.00033886]
[1762259050153,0.83329917,104190.0,104180.0,0.00033886]
[1762259050368,0.84046043,104190.0,104180.0,0.00033886]
[1762259050572,0.84046043,104190.0,104180.0,0.00081922]
[1762259050797,0.85820996,104190.0,104180.0,0.00081922]
[1762259051005,0.28477699,104190.0,104180.0,0.00081922]
[1762259051467,0.235177,104190.0,104180.0,0.00081922]
[1762259051672,0.28777699,104190.0,104180.0,0.00081922]
[1762259051879,0.85446042,104190.0,104180.0,0.00081922]
[1762259052310,0.28877699,104190.0,104180.0,0.00081922]
[1762259053109,0.24617699,104190.0,104180.0,0.00081922]
[1762259053312,0.26382699,104190.0,104180.0,0.00081922]
[1762259053729,0.28877699,104190.0,104180.0,0.00081922]
[1762259054366,0.85446042,104190.0,104180.0,1e-08]
[1762259054599,0.20197541,104180.0,104170.0,0.0002]
[1762259054819,0.82561393,104180.0,104170.0,0.0002]
[1762259055023,0.20204915,104140.0,104130.0,0.008]
[1762259055253,0.22809915,104140.0,104130.0,0.00848541]
[1762259055462,0.25259915,104140.0,104130.0,0.00048541]
[1762259056295,0.81828258,104140.0,104130.0,0.00048541]
[1762259056741,0.24259916,104140.0,104130.0,0.00048541]
[1762259056947,0.25259915,104140.0,104130.0,0.00048541]
[1762259057573,0.27859915,104140.0,104130.0,0.00048541]
[1762259057797,0.27959915,104140.0,104130.0,0.00048541]
[1762259058003,0.25509915,104140.0,104130.0,0.00848541]
[1762259058201,0.25259915,104140.0,104130.0,0.00048541]
[1762259058851,0.25459915,104140.0,104130.0,0.00048541]
[1762259059136,0.25559915,104140.0,104130.0,0.00148541]
[1762259059313,0.82128258,104140.0,104130.0,0.00148541]
[1762259059754,0.30208604,104140.0,104130.0,0.00148541]
[1762259062764,0.86776947,104140.0,104130.0,0.00148541]
[1762259063167,0.86776947,104140.0,104130.0,0.00268702]
[1762259064826,0.20208604,104120.0,104110.0,0.0002]
[1762259065037,0.22040605,104120.0,104110.0,0.00034554]
[1762259065247,0.25490604,104120.0,104110.0,0.00034554]
[1762259067388,0.82358947,104120.0,104110.0,0.00034554]
[1762259067571,0.84119367,104120.0,104110.0,0.00034554]
[1762259067797,0.8700398,104120.0,104110.0,0.00034554]
[1762259068025,0.8700398,104120.0,104090.0,0.0011]
[1762259068239,0.79612637,104100.0,104090.0,0.00124565]
[1762259068453,0.28092715,104100.0,104090.0,0.00124565]
[1762259068671,0.31542714,104100.0,104090.0,0.00124565]
[1762259068890,0.27254714,104100.0,104090.0,0.00124565]
[1762259069102,0.25494294,104100.0,104090.0,0.00124565]
[1762259069546,0.05282,104100.0,104090.0,0.19338706]
[1762259069791,0.20407105,104110.0,104090.0,0.24154706]
[1762259070015,0.00999999,104100.0,104090.0,0.21797706]
[1762259070221,0.20212294,104100.0,104090.0,0.02583565]
[1762259070437,0.20212294,104100.0,104090.0,0.21797706]
[1762259070664,0.2021414,104090.0,104080.0,8e-05]
[1762259070909,0.81842483,104090.0,104080.0,0.00017336]
[1762259071376,0.81842483,104090.0,104080.0,0.00137583]
[1762259071617,0.8360055,104090.0,104080.0,0.00137583]
[1762259071857,0.36580114,104090.0,104080.0,0.00137583]
[1762259072296,0.35022047,104090.0,104080.0,0.00137583]
[1762259072925,0.35122047,104090.0,104080.0,0.00137583]
[1762259073552,0.34922047,104090.0,104080.0,0.00137583]
[1762259073771,0.34822047,104090.0,104080.0,0.00137583]
[1762259074204,0.35122047,104090.0,104080.0,0.00137583]
[1762259075476,0.96758351,104090.0,104080.0,1e-08]
[1762259075680,1.0164427,104090.0,104080.0,1e-08]
[1762259076010,1.0064427,104090.0,104080.0,1e-08]
[1762259076410,0.43975927,104090.0,104080.0,1e-08]
[1762259077820,1.1419738,104090.0,104080.0,1e-08]
[1762259078229,0.19221528,104050.0,104040.0,0.00382863]
[1762259078604,0.21904528,104050.0,104040.0,0.00397438]
[1762259078840,0.21904528,104050.0,104040.0,0.00493696]
[1762259079654,0.22904527,104050.0,104040.0,0.00493696]
[1762259079860,0.21404527,104050.0,104040.0,0.02125696]
[1762259080067,0.22104527,104050.0,104040.0,0.02125696]
[1762259080284,0.23604527,104050.0,104040.0,0.00493696]
[1762259080501,0.25104527,104050.0,104040.0,0.00493696]
[1762259080934,0.22421527,104050.0,104040.0,0.04306696]
[1762259081138,0.22421527,104050.0,104040.0,0.23530071]
[1762259081571,0.03199999,104050.0,104040.0,0.23530071]
[1762259082045,0.22421527,104050.0,104040.0,0.23530071]
[1762259082227,0.03199999,104050.0,104040.0,0.23530071]
[1762259082671,0.22421527,104050.0,104040.0,0.23530071]
[1762259082987,0.03199999,104050.0,104040.0,0.23530071]
[1762259083410,0.22421527,104050.0,104040.0,0.23530071]
[1762259083624,0.22421527,104050.0,104040.0,0.19717071]
[1762259083836,0.23604527,104050.0,104040.0,0.19717071]
[1762259084048,0.23604527,104050.0,104040.0,0.21349071]
[1762259084492,0.22421527,104050.0,104040.0,0.21349071]
[1762259084690,0.22421527,104050.0,104040.0,0.23530071]
[1762259085210,0.03199999,104050.0,104040.0,0.23530071]
[1762259086147,0.00999999,104080.0,104070.0,0.19217834]
[1762259086386,0.00999999,104080.0,104070.0,0.28259834]
[1762259086622,0.00999999,104090.0,104080.0,0.19215987]
[1762259086856,0.00999999,104090.0,104080.0,0.23001987]
[1762259088179,0.01699999,104090.0,104080.0,0.23001987]
[1762259088609,0.03199999,104090.0,104080.0,0.23001987]
[1762259088852,0.03199999,104090.0,104080.0,0.20820987]
[1762259089111,0.03199999,104090.0,104080.0,0.23001987]
[1762259089348,0.2241414,104090.0,104080.0,0.23001987]
[1762259089773,0.2241414,104090.0,104080.0,0.03786]
[1762259090000,0.2241414,104090.0,104080.0,0.01605]
[1762259090218,0.2516014,104090.0,104080.0,0.05917]
[1762259090444,0.20215986,104080.0,104070.0,0.00968057]
[1762259090670,0.21823986,104080.0,104070.0,0.00982632]
[1762259091102,0.24267986,104080.0,104070.0,0.00982632]
[1762259091325,0.26036888,104080.0,104070.0,0.00982632]
[1762259091541,0.23592888,104080.0,104070.0,0.00982632]
[1762259091753,0.26636888,104080.0,104070.0,0.01082632]
[1762259092190,0.30952888,104080.0,104070.0,0.00138632]
[1762259092407,0.31837815,104080.0,104070.0,0.00138632]
[1762259092614,0.30952888,104080.0,104070.0,0.00138632]
[1762259092844,0.31837811,104080.0,104070.0,0.00138632]
[1762259093275,1.02559264,104080.0,104070.0,1e-08]
[1762259093521,0.19223375,104040.0,104030.0,0.00890069]
[1762259093735,0.20223374,104040.0,104030.0,0.03071069]
[1762259093947,0.20223374,104040.0,104030.0,0.04676069]
[1762259094587,0.20223374,104040.0,104030.0,0.08992069]
[1762259095048,0.20323374,104040.0,104030.0,0.09392069]
[1762259095694,0.20323374,104040.0,104030.0,0.07211069]
[1762259095913,0.20323374,104040.0,104030.0,0.09392069]
[1762259096348,0.20323374,104040.0,104030.0,0.07211069]
[1762259096588,0.21931374,104040.0,104030.0,0.05606069]
[1762259096830,0.28691374,104040.0,104030.0,0.01290069]
[1762259097038,0.28891374,104040.0,104030.0,0.01790069]
[1762259097478,0.30662508,104040.0,104030.0,0.01790069]
[1762259098296,0.31548049,104040.0,104030.0,0.01790069]
[1762259099129,0.31548049,104040.0,104030.0,0.01886341]
[1762259099338,0.20228919,104010.0,104000.0,10.5602]
[1762259099549,0.29953926,104010.0,104000.0,10.56068595]
[1762259099754,0.34437222,104010.0,104000.0,10.56068595]
[1762259099955,0.22974919,104010.0,104000.0,10.56068595]
[1762259100378,0.26304352,104010.0,104000.0,10.56068595]
[1762259100618,1.09383748,104010.0,104000.0,10.12081628]
[1762259101016,0.39762295,104010.0,104000.0,10.12081628]
[1762259101254,0.39662295,104010.0,104000.0,10.12081628]
[1762259101453,0.39662295,104010.0,104000.0,10.12581628]
[1762259101676,0.20314353,104010.0,104000.0,10.12581628]
[1762259101898,0.25718919,104010.0,104000.0,10.12581628]
[1762259102115,0.35266826,104010.0,104000.0,10.12581628]
[1762259103037,0.35066826,104010.0,104000.0,10.12081628]
[1762259103263,1.04688279,104010.0,104000.0,10.12081628]
[1762259103428,0.33966827,104010.0,104000.0,10.12081628]
[1762259103656,0.35466826,104010.0,104000.0,10.12081628]
[1762259104834,1.05188279,104010.0,104000.0,10.12081628]
[1762259105047,1.05188279,104010.0,104000.0,10.12153866]
[1762259105513,0.39822826,104010.0,104000.0,10.12153866]
[1762259107725,1.0854428,104010.0,104000.0,10.12153866]
[1762259107926,0.39822826,104010.0,104000.0,10.12153866]
[1762259108845,0.33022826,104010.0,104000.0,10.12153866]
[1762259109077,0.37374826,104010.0,104000.0,10.12153866]
[1762259109490,0.33022826,104010.0,104000.0,10.12153866]
[1762259110001,0.32622826,104010.0,104000.0,10.12153866]
[1762259110237,0.31114826,104010.0,104000.0,10.12153866]
[1762259110989,0.31214826,104010.0,104000.0,10.12153866]
[1762259111205,0.35266826,104010.0,104000.0,9.64951426]
[1762259111414,4.06988278,104010.0,104000.0,9.64951426]
[1762259111630,4.09756536,104010.0,104000.0,9.42183144]
[1762259111836,0.40510313,104010.0,104000.0,9.42183144]
[1762259112040,0.39630826,104010.0,104000.0,9.42183144]
[1762259112273,0.39530826,104010.0,104000.0,9.42183144]
[1762259112916,0.39526826,104010.0,104000.0,9.42183144]
[1762259113109,0.34966826,104010.0,104000.0,9.42183144]
[1762259113310,0.39326826,104010.0,104000.0,9.42183144]
[1762259113532,0.39926826,104010.0,104000.0,9.42283144]
[1762259113937,0.39326826,104010.0,104000.0,9.42183144]
[1762259114168,4.28268701,104010.0,104000.0,7.4282956]
[1762259114381,4.24033805,104010.0,104000.0,7.39942629]
[1762259114585,4.20780347,104010.0,104000.0,7.30188301]
[1762259114762,4.11565243,104010.0,104000.0,7.1064519]
[1762259114989,4.11365243,104010.0,104000.0,6.77235479]
[1762259115465,4.10265244,104010.0,104000.0,6.43847706]
[1762259115743,4.11565093,104010.0,104000.0,6.24358752]
[1762259116170,4.11565093,104010.0,104000.0,5.85050613]
[1762259116628,4.11165094,104010.0,104000.0,5.85050613]
[1762259116835,4.12165093,104010.0,104000.0,5.18712219]
[1762259117044,4.11165094,104010.0,104000.0,5.18712219]
[1762259117265,4.12165093,104010.0,104000.0,5.18712219]
[1762259118239,3.40443641,104010.0,104000.0,5.18712219]
[1762259118440,0.38685664,104010.0,104000.0,5.18712219]
[1762259118665,1.07528279,104010.0,104000.0,5.18712219]
[1762259118870,0.37806826,104010.0,104000.0,5.18712219]
[1762259119107,4.08800275,104010.0,104000.0,4.53278432]
[1762259119313,4.12587471,104010.0,104000.0,4.53278432]
[1762259119441,4.11587472,104010.0,104000.0,4.53278432]
[1762259119860,4.12587471,104010.0,104000.0,4.53278432]
[1762259120061,4.11587472,104010.0,104000.0,4.53278432]
[1762259120258,4.22717471,104010.0,104000.0,3.73734692]
[1762259120461,4.22717471,104010.0,104000.0,3.45275789]
[1762259120657,4.20717472,104010.0,104000.0,3.29966405]
[1762259120859,4.22717471,104010.0,104000.0,3.17863754]
[1762259121138,4.21717472,104010.0,104000.0,3.17863754]
[1762259121342,4.12587471,104010.0,104000.0,3.17863754]
[1762259121768,4.12587471,104010.0,104000.0,2.62284064]
[1762259121971,4.12589484,104010.0,104000.0,2.62284064]
[1762259122895,4.12589484,104010.0,104000.0,2.61783201]
[1762259124773,4.11589485,104010.0,104000.0,2.61783201]
[1762259125860,3.40868032,104010.0,104000.0,2.61783201]
[1762259126081,0.40868032,104010.0,104000.0,2.61783201]
[1762259126292,4.10589485,104010.0,104000.0,2.61783201]
[1762259129083,3.40868032,104010.0,104000.0,2.61783201]
[1762259129325,4.10589485,104010.0,104000.0,2.61783201]
[1762259130251,4.10589485,104010.0,104000.0,2.35691201]
[1762259130975,4.11589485,104010.0,104000.0,2.35691201]
[1762259131643,4.11589485,104010.0,104000.0,1.76674027]
[1762259132526,3.41868032,104010.0,104000.0,1.76674027]
[1762259132745,4.11589485,104010.0,104000.0,1.76674027]
[1762259133611,4.22719484,104010.0,104000.0,1.14582174]
[1762259133816,4.95379521,104010.0,104000.0,0.23726864]
[1762259134034,4.25658068,104010.0,104000.0,0.12909159]
[1762259134247,0.19234468,103980.0,103970.0,0.0002]
[1762259134480,1.09593033,103980.0,103970.0,0.00029348]
[1762259134698,1.09593033,103980.0,103970.0,0.00101618]
[1762259135549,0.3987158,103980.0,103970.0,0.00101618]
[1762259135785,1.08593033,103980.0,103970.0,0.00101618]
[1762259136001,1.08693033,103980.0,103970.0,0.00101618]
[1762259136526,1.09664016,103980.0,103970.0,0.00101618]
[1762259136728,1.10564016,103980.0,103970.0,0.00101618]
[1762259137541,4.10564016,103980.0,103970.0,0.00101618]
[1762259137815,4.10564016,103980.0,103970.0,1e-08]
[1762259137816,4.21694015,103980.0,103970.0,1e-08]
[1762259137962,4.16274016,103980.0,103970.0,1e-08]
[1762259138163,4.20698016,103980.0,103970.0,1e-08]
[1762259138408,4.08847885,103980.0,103970.0,1e-08]
[1762259138605,4.08786985,103980.0,103970.0,1e-08]
[1762259138810,4.08686985,103980.0,103970.0,1e-08]
[1762259139164,3.93532986,103980.0,103970.0,1e-08]
[1762259139385,3.97956986,103980.0,103970.0,1e-08]
[1762259139785,3.98356986,103980.0,103970.0,1e-08]
[1762259141240,3.97356986,103980.0,103970.0,1e-08]
[1762259141462,4.08486986,103980.0,103970.0,1e-08]
[1762259142104,4.08086986,103980.0,103970.0,1e-08]
[1762259142554,3.98056986,103980.0,103970.0,1e-08]
[1762259142680,3.97656986,103980.0,103970.0,1e-08]
[1762259143138,3.98256986,103980.0,103970.0,1e-08]
[1762259143541,3.97656986,103980.0,103970.0,1e-08]
[1762259143950,3.98056986,103980.0,103970.0,1e-08]
[1762259144579,3.35761663,103980.0,103970.0,1e-08]
[1762259144867,0.97056986,103980.0,103970.0,1e-08]
[1762259145013,0.92632986,103980.0,103970.0,1e-08]
[1762259145212,0.97056986,103980.0,103970.0,1e-08]
[1762259146271,0.92632986,103980.0,103970.0,1e-08]
[1762259146502,0.97052986,103980.0,103970.0,1e-08]
[1762259148813,3.97052986,103980.0,103970.0,1e-08]
[1762259150055,3.92632986,103980.0,103970.0,1e-08]
[1762259150251,3.97048986,103980.0,103970.0,1e-08]
[1762259151060,0.3495158,103980.0,103970.0,1e-08]
[1762259151267,0.25129112,103980.0,103970.0,1e-08]
[1762259151598,0.4436358,103980.0,103970.0,1e-08]
[1762259152165,0.41721577,103980.0,103970.0,1e-08]
[1762259152366,1.00425741,103980.0,103970.0,1e-08]
[1762259152572,0.42209299,103980.0,103970.0,1e-08]
[1762259152771,0.22874831,103980.0,103970.0,1e-08]
[1762259152971,0.42309299,103980.0,103970.0,1e-08]
[1762259153196,0.42409299,103980.0,103970.0,1e-08]
[1762259153396,0.43152293,103980.0,103970.0,1e-08]
[1762259153844,0.43352293,103980.0,103970.0,1e-08]
[1762259154480,1.01999391,103980.0,103970.0,1e-08]
[1762259156082,0.40716068,103980.0,103970.0,1e-08]
[1762259156277,0.18762831,103980.0,103970.0,0.02112001]
[1762259156479,0.20255906,103980.0,103970.0,0.02112001]
[1762259156681,0.20255906,103980.0,103970.0,1e-08]
[1762259157342,0.39490374,103980.0,103970.0,1e-08]
[1762259157564,0.96361697,103980.0,103970.0,1e-08]
[1762259159238,0.99298108,103980.0,103970.0,1e-08]
[1762259159464,1.02041751,103980.0,103970.0,1e-08]
[1762259160312,1.01841751,103980.0,103970.0,1e-08]
[1762259160527,1.00841752,103980.0,103970.0,1e-08]
[1762259160737,1.00841752,103980.0,103970.0,0.00200001]
[1762259160738,1.02541751,103980.0,103970.0,0.00200001]
[1762259161592,1.02441751,103980.0,103970.0,0.00200001]
[1762259162013,1.02041751,103980.0,103970.0,1e-08]
[1762259162224,0.97333751,103980.0,103970.0,1e-08]
[1762259162434,1.02133751,103980.0,103970.0,0.00200001]
[1762259162643,4.02233751,103980.0,103970.0,0.00300001]
[1762259164075,4.02236882,103980.0,103970.0,0.00300001]
[1762259166649,0.40965559,103980.0,103970.0,0.00300001]
[1762259166861,0.24347423,103980.0,103970.0,0.00300001]
[1762259167067,0.42692057,103980.0,103970.0,0.00300001]
[1762259167266,4.00452985,103980.0,103970.0,0.00300001]
[1762259168495,1.00452985,103980.0,103970.0,0.00300001]
[1762259169575,1.00444985,103980.0,103970.0,0.00300001]
[1762259170261,1.02224809,103980.0,103970.0,0.00300001]
[1762259171575,1.00444985,103980.0,103970.0,0.00300001]
[1762259172989,0.43573662,103980.0,103970.0,0.00300001]
[1762259173181,0.39185662,103980.0,103970.0,0.00300001]
[1762259173416,0.43569662,103980.0,103970.0,0.00300001]
[1762259174576,0.24335194,103980.0,103970.0,0.00300001]
[1762259174790,0.23445589,103980.0,103970.0,0.00300001]
[1762259174991,0.19061589,103980.0,103970.0,0.00300001]
[1762259175192,0.40628494,103980.0,103970.0,0.00300001]
[1762259175402,0.93119817,103980.0,103970.0,0.00300001]
[1762259175602,0.97499817,103980.0,103970.0,0.00300001]
[1762259175809,1.00440552,103980.0,103970.0,0.00300001]
[1762259176429,0.80316005,103980.0,103970.0,0.00300001]
[1762259176646,0.17014026,103980.0,103970.0,0.00300001]
[1762259176847,0.21394026,103980.0,103970.0,0.03426001]
[1762259177049,0.16047906,103980.0,103970.0,0.07917001]
[1762259177317,0.06499999,103980.0,103970.0,0.2907695]
[1762259177525,0.06499999,103980.0,103970.0,0.27153319]
[1762259177727,0.055,103980.0,103970.0,0.36701226]
[1762259178586,0.05,103980.0,103970.0,0.36401226]
[1762259178938,0.058,103980.0,103970.0,0.31437319]
[1762259179339,0.056,103980.0,103970.0,0.40785226]
[1762259180297,0.069,103980.0,103970.0,0.40885226]
[1762259187558,0.069,103980.0,103970.0,0.31329319]
[1762259188568,0.07899999,103980.0,103970.0,0.07717001]
[1762259189444,0.07899999,103980.0,103970.0,0.26953319]
[1762259189646,0.07899999,103980.0,103970.0,0.03226001]
[1762259189864,0.07899999,103980.0,103970.0,0.03230001]
[1762259190073,0.07899999,103980.0,103970.0,0.07721001]
[1762259191118,0.07899999,103980.0,103970.0,0.00104001]
[1762259191358,0.27134467,103980.0,103970.0,0.00104001]
[1762259191759,0.31506467,103980.0,103970.0,0.00104001]
[1762259191952,0.12271999,103980.0,103970.0,0.26918319]
[1762259192244,0.07899999,103980.0,103970.0,0.26918319]
[1762259192455,0.069,103980.0,103970.0,0.26918319]
[1762259192676,0.069,103980.0,103970.0,0.31294319]
[1762259192887,0.069,103980.0,103970.0,0.40842226]
[1762259195855,0.069,103980.0,103970.0,0.60842226]
[1762259197106,0.00999999,104020.0,104010.0,0.1922892]
[1762259197559,0.00999999,104020.0,104010.0,0.2906092]
[1762259198442,0.0174836,104020.0,104010.0,0.2936092]
[1762259198859,0.0154836,104020.0,104010.0,0.2926092]
[1762259199054,0.0164836,104020.0,104010.0,0.2956092]
[1762259199624,0.12047907,104070.0,104010.0,0.38908827]
[1762259199836,0.00999999,104050.0,104040.0,0.03108]
[1762259200045,0.00999999,104040.0,104030.0,0.04376]
[1762259200274,0.00999999,104040.0,104030.0,0.23601223]
[1762259200480,0.00999999,104040.0,104030.0,0.33433223]
[1762259201307,0.1642921,104070.0,104050.0,0.19221363]
[1762259201549,0.00999999,104060.0,104050.0,0.19221363]
[1762259201978,0.02509303,104070.0,104060.0,0.2232768]
[1762259202407,0.01039999,104090.0,104070.0,0.19217834]
[1762259202408,0.0004,104090.0,104070.0,0.19217834]
[1762259202623,0.01039999,104090.0,104080.0,0.33443987]
[1762259203074,0.0004,104090.0,104080.0,0.33443987]
[1762259203283,0.01039999,104090.0,104080.0,0.33443987]
[1762259204153,0.0004,104090.0,104080.0,0.33443987]
[1762259205061,0.0064,104090.0,104080.0,0.33443987]
[1762259205566,0.0004,104090.0,104080.0,0.33443987]
[1762259205923,0.0004,104090.0,104080.0,0.33743987]
[1762259206268,0.0004,104090.0,104080.0,0.53443987]
[1762259206699,0.0054,104090.0,104080.0,0.53543987]
[1762259206897,0.0154,104090.0,104080.0,0.53743987]
[1762259207092,0.025,104110.0,104100.0,0.19212295]
[1762259207314,0.02514014,104110.0,104100.0,0.28729295]
[1762259207471,0.02514014,104110.0,104100.0,0.32945295]
[1762259208488,0.03514013,104110.0,104100.0,0.02248]
[1762259208688,0.03514013,104110.0,104100.0,0.05125]
[1762259208895,0.22724463,104110.0,104100.0,0.02248]
[1762259209180,0.03099999,104090.0,104080.0,0.0677]
[1762259209590,0.03099999,104090.0,104080.0,0.003]
[1762259209795,0.2231414,104090.0,104080.0,0.003]
[1762259209994,0.20214207,104090.0,104060.0,0.31036641]
[1762259210195,0.09547907,104080.0,104060.0,0.31036641]
[1762259210379,0.29763905,104080.0,104060.0,0.06464]
[1762259210619,0.10547906,104080.0,104060.0,0.25683535]
[1762259211048,0.10547906,104080.0,104060.0,0.06464]
[1762259211234,0.10547906,104080.0,104060.0,0.25683609]
[1762259211880,0.29763936,104080.0,104060.0,0.06564]
[1762259212287,0.00999999,104070.0,104060.0,0.06564]
[1762259212615,0.00999999,104070.0,104060.0,0.06864]
[1762259212805,0.00999999,104070.0,104060.0,0.10741]
[1762259213328,0.00999999,104070.0,104060.0,0.10341]
[1762259213508,0.00999999,104070.0,104060.0,0.09341]
[1762259214327,0.00999999,104070.0,104060.0,0.2856068]
[1762259214702,0.00999999,104070.0,104060.0,0.2906068]
[1762259215105,0.01199999,104070.0,104060.0,0.3026068]
[1762259215918,0.002,104070.0,104060.0,0.39808587]
[1762259220612,0.03499999,104110.0,104100.0,0.19212295]
[1762259220835,0.03514013,104110.0,104100.0,0.05125]
[1762259221043,0.03514013,104110.0,104100.0,0.30474524]
[1762259221044,0.02514014,104110.0,104100.0,0.30474524]
[1762259221257,0.0004,104120.0,104110.0,0.1921045]
[1762259221489,0.0004,104120.0,104110.0,0.42487357]